Cogmind - Beta 14 @@@ ROGUE MODE // 2024.09.04 @ 00:42:27 Player: THN-L0C Result: Destroyed by as-86785 with Assembled Shotgun Performance ------------- Evolutions (4) 2000 Regions Visited (15) 3000 Robots Destroyed (122) 610 Value Destroyed (4562) 4562 Prototype IDs (51) 1020 Alien Tech Used (0) 0 Bonus (2369) 2369 TOTAL SCORE: 13561 Bonus ------- Follower Combat Kills 37 Aligned with FarCom 300 Met Data Miner 300 Destroyed Z-Imprinter 1000 Triggered Deep Caves Wall 500 Exposed GOLEM Chamber 500 Friendly Fire -268 Cogmind --------- Core Integrity 0/850 Matter 172/300 Energy 118/290 System Corruption 0% Temperature Cool (0) Movement Rolling (130) Ox2 Location -6/Deep Caves Parts ------- > --- POWER (2) -------- Improved Deuterium Engine > --- PROPULSION (2) --- Centrium Wheel Centrium Wheel > --- UTILITY (8) ------ Advanced Heat Sink High-capacity Storage Unit Advanced Targeting Computer Phasing AFG > --- WEAPON (3) ------- Cooled Pulse Rifle Cooled Plasma Cannon Antimatter Cannon > --- INVENTORY (20) --- Angular Momentum Engine Huge Storage Unit Energy Well (350) Matter Compressor (250) Improved Sensor Array Transmission Jammer Zionite Weapon Casing GOLEM Unit Field Lobotomy Kit (3) Powered Hammer CR-A16's Pointy Stick Peak State ------------ > --- POWER ------------ Angular Momentum Engine Zionite Light DM Reactor > --- PROPULSION ------- Centrium Wheel Centrium Wheel > --- UTILITY ---------- Improved Heat Sink Advanced Heat Sink High-capacity Storage Unit Advanced Targeting Computer Transmission Jammer Core Shielding Zionite Weapon Casing Phasing AFG > --- WEAPON ----------- Firepult Field Lobotomy Kit > --- INVENTORY -------- Improved Deuterium Engine Angular Momentum Engine Improved Heat Sink Huge Storage Unit Energy Well Matter Compressor Improved Sensor Array Layered Light Armor Plating GOLEM Unit Cooled Pulse Rifle Zionite Laser-S Cooled Plasma Cannon Missile Launcher Powered Hammer CR-A16's Pointy Stick [Rating: 100] Favorites ----------- Power Angular Momentum Engine Engine Angular Momentum Engine Power Core Micro Nuclear Core Reactor Zionite Light DM Reactor Propulsion Centrium Wheel Treads Light Treads Wheel Centrium Wheel Hover Unit Aerolev Unit Utility High-capacity Storage Unit Device Transmission Jammer Storage High-capacity Storage Unit Processor Advanced Targeting Computer Hackware System Shield Protection Improved Medium Armor Plating Weapon Cooled Pulse Rifle Energy Gun Cooled Pulse Rifle Energy Cannon Cooled Plasma Cannon Ballistic Gun Light Assault Rifle Ballistic Cannon Antimatter Cannon Launcher Missile Launcher Special Weapon Field Lobotomy Kit Impact Weapon Great Maul Slashing Weapon Chainsword Piercing Weapon CR-A16's Pointy Stick Build | -11 -10 -10 -10 -9 -8 -7 -7 -7 -7 -6 -6 -6 -6 -6 -6 ------- Run | Yrd Mat Min Exi Min Mat Fac Low Low Dat Pro Fac Low Low Zio Dee Slots Evolved 8 | . . . . . 4 2 . . . . 2 . . . . Power 1 | . . . . . . 1 . . . . . . . . . Propulsion . | . . . . . . . . . . . . . . . . Utility 6 | . . . . . 4 . . . . . 2 . . . . Weapon 1 | . . . . . . 1 . . . . . . . . . Parts Attached 242 | 7 4 1 1 10 45 35 8 1 . 17 56 4 7 9 37 Power 25 | 1 2 . . . 2 2 3 . . 4 6 . . . 5 Engine 22 | 1 2 . . . 1 2 3 . . 4 5 . . . 4 Core 2 | . . . . . 1 . . . . . 1 . . . . Reactor 1 | . . . . . . . . . . . . . . . 1 Propulsion 23 | 2 . . . 3 10 3 1 . . . 4 . . . . Treads 8 | 2 . . . 2 . 2 . . . . 2 . . . . Leg . | . . . . . . . . . . . . . . . . Wheel 12 | . . . . 1 7 1 1 . . . 2 . . . . Hover 3 | . . . . . 3 . . . . . . . . . . Flight . | . . . . . . . . . . . . . . . . Utility 77 | 2 1 . 1 2 10 10 2 1 . 6 21 4 2 5 10 Device 44 | 1 . . . 1 6 3 2 1 . 4 11 3 1 4 7 Storage 9 | 1 1 . 1 . . . . . . . 4 . 1 . 1 Processor 6 | . . . . . 1 2 . . . . 3 . . . . Hackware 3 | . . . . . . 2 . . . . 1 . . . . Protection 15 | . . . . 1 3 3 . . . 2 2 1 . 1 2 Artifact . | . . . . . . . . . . . . . . . . Weapon 117 | 2 1 1 . 5 23 20 2 . . 7 25 . 5 4 22 Energy Gun 52 | . . . . . 13 11 1 . . 2 14 . 4 1 6 Energy Cannon 14 | . . . . . 2 3 . . . 2 1 . 1 . 5 Ballistic Gun 8 | 2 . 1 . . 3 . . . . 2 . . . . . Ballistic Cannon 6 | . . . . . . . . . . . 3 . . . 3 Launcher 11 | . 1 . . 3 . . 1 . . . 1 . . . 5 Special Weapon 3 | . . . . . . . . . . . . . . 1 2 Impact Weapon 15 | . . . . 1 2 4 . . . 1 6 . . 1 . Slashing Weapon 6 | . . . . 1 3 2 . . . . . . . . . Piercing Weapon 2 | . . . . . . . . . . . . . . 1 1 Special Melee Weapon . | . . . . . . . . . . . . . . . . Unidentified Prototypes 18 | . 1 . . . 8 3 . . . . 2 . . 1 3 Parts Lost 35 | . . . . 2 2 1 3 . . 8 7 1 2 . 9 Power 4 | . . . . . . . 1 . . . 1 . . . 2 Propulsion 4 | . . . . 1 1 1 . . . . 1 . . . . Utility 16 | . . . . 1 . . 1 . . 5 2 1 2 . 4 Weapon 11 | . . . . . 1 . 1 . . 3 3 . . . 3 Highest Loss Streak 5 | . . . . 2 1 1 3 . . 5 1 1 1 . 4 To Critical Strikes . | . . . . . . . . . . . . . . . . Average Slot Usage (%) 95 | . 100 100 72 80 98 99 93 92 92 86 97 99 99 98 94 Engine 12 | . 14 14 14 14 7 15 14 15 15 15 12 13 13 13 9 Treads 5 | . 28 28 28 27 4 6 1 . . . 3 . . . . Wheel 8 | . . . . . 13 7 7 7 7 7 8 13 13 13 13 Device 19 | . 14 14 14 8 18 13 21 23 23 16 24 26 23 22 23 Storage 9 | . 14 14 14 14 9 7 7 7 7 7 8 6 8 10 9 Processor 6 | . . . . . 9 6 7 7 7 7 10 6 6 6 6 Hackware 1 | . . . . . . 4 1 . . . 4 . . . . Protection 8 | . . . . 4 16 12 7 7 7 8 3 12 13 12 12 Energy Gun 10 | . . . . . 13 18 22 23 23 5 13 13 15 7 3 Energy Cannon 2 | . . . . . 1 . . . . 6 2 6 3 6 5 Ballistic Gun 2 | . 28 24 1 . . . . . . 8 . . . . . Impact Weapon 1 | . . . . 1 . 2 . . . . 1 . . 2 . Peak Build Rating 100 | 7 11 11 11 24 45 54 57 58 58 59 80 79 75 82 100 Average Rating 58 | 5 9 11 9 13 36 49 55 57 58 55 71 75 73 74 81 On Entrance 43 | . 7 11 11 11 24 39 52 57 58 58 55 79 75 75 76 Naked Turns . | . . . . . . . . . . . . . . . . Heaviest Build 125 | 11 24 24 49 56 75 85 86 86 85 99 103 95 98 113 125 Greatest Support 58 | 40 40 40 40 40 40 26 28 28 28 28 58 32 32 32 32 Greatest Overweight (x) 8 | . . . 1 2 8 8 4 3 3 3 3 2 3 3 3 Average Overweight (x) 2 | . . . . 1 1 6 3 3 3 2 2 2 2 2 2 Largest Inventory Capacity 20 | 8 10 10 20 20 20 20 20 20 20 20 20 20 20 20 20 Average Capacity 19 | 7 8 10 16 20 20 20 20 20 20 20 20 20 20 20 20 Most Carried 20 | . 10 10 15 20 20 20 20 20 20 20 20 20 20 20 20 Average Carried 17 | . 5 10 11 15 19 19 19 19 20 18 19 19 19 19 16 Final Capacity 20 | 8 10 10 20 20 20 20 20 20 20 20 20 20 20 20 20 Final Carried 20 | . 10 10 15 20 20 20 20 20 20 20 20 20 19 20 12 Class Distribution -------------------- 39% | Mutant 22% | Gunner 7% | Scavenger-Tank 7% | Tank 5% | Skirmisher 4% | Scavenger-Gunner 4% | Scavenger-Mutant 4% | Derelict-Gunner 3% | Scavenger-Skirmisher Dominant Class ---------------- Mutant | -10/Materials Mutant | -10/Mines Mutant | -10/Exiles Mutant | -9/Mines Mutant | -8/Materials Mutant | -7/Factory Derelict-Gunner | -7/Lower Caves Gunner | -7/Lower Caves Gunner | -7/Data Miner Scavenger-Gunner | -6/Proximity Caves Gunner | -6/Factory Tank | -6/Lower Caves Gunner | -6/Lower Caves Mutant | -6/Zion Scavenger-Tank | -6/Deep Caves Resources | -11 -10 -10 -10 -9 -8 -7 -7 -7 -7 -6 -6 -6 -6 -6 -6 ----------- Run | Yrd Mat Min Exi Min Mat Fac Low Low Dat Pro Fac Low Low Zio Dee Matter Collected 4342 | 217 183 . 222 60 731 414 200 26 . 342 769 451 132 78 517 Remotely . | . . . . . . . . . . . . . . . . Salvage Created 6086 | 23 245 13 . 124 1164 608 154 61 . 606 1081 173 463 . 1371 Parts 241 | 2 20 4 . 17 55 29 5 5 . 22 54 5 15 . 8 Haulers Intercepted 8 | . 1 . . . 4 3 . . . . . . . . . Recyclers Shooed 3 | 1 . . . . 1 . . . . . 1 . . . . Parts Field Recycled . | . . . . . . . . . . . . . . . . Retrieved Matter . | . . . . . . . . . . . . . . . . Parts Self-Destructed 56 | . . . . . . . 7 5 . 16 . 12 16 . . Prevented 2 | . . . . . . . . . . . . . 2 . . Kills | -11 -10 -10 -10 -9 -8 -7 -7 -7 -7 -6 -6 -6 -6 -6 -6 ------- Run | Yrd Mat Min Exi Min Mat Fac Low Low Dat Pro Fac Low Low Zio Dee Combat Hostiles Destroyed 137 | . 5 3 . 12 14 6 4 1 . 9 20 3 9 . 51 Guns 43 | . 5 . . . 10 4 3 1 . 5 10 1 4 . . Cannons 28 | . . . . . 4 . . . . 4 4 2 1 . 13 AOE 52 | . . 3 . 12 . . 1 . . . 3 . . . 33 Classes Destroyed 18 | 1 5 . . 2 4 1 . . . 1 1 . . . 3 Worker 5 | . 2 . . . 1 1 . . . . 1 . . . . Builder 3 | . . . . . 1 1 . . . . 1 . . . . Tunneler 3 | 1 . . . . . 2 . . . . . . . . . Hauler 8 | . 1 . . . 4 3 . . . . . . . . . Recycler 4 | . . . . . 3 1 . . . . . . . . . Operator 1 | . . . . . . . . . . . 1 . . . . Watcher 7 | . 1 . . . 1 1 . . . . 4 . . . . Swarmer 26 | . 3 3 . 8 3 . 1 . . . 4 . 4 . . Grunt 31 | . 2 . . 2 6 1 1 . . 6 8 2 3 . . Brawler 2 | . . . . 1 . . . . . 1 . . . . . Duelist 3 | . . . . 1 . . . . . . . 1 1 . . Sentry 6 | . . . . . 2 . 1 1 . 1 1 . . . . Hunter 5 | . . . . . 3 2 . . . . . . . . . Programmer 11 | . . . . . . 3 1 . . . 7 . . . . Behemoth 2 | . . . . . . . . . . 1 . . 1 . . Z-Technician 5 | . . . . . . . . . . . . . . . 5 Z-Light 2 | . . . . . . . . . . . . . . . 2 Assembled 45 | . . . . . . . . . . . . . . . 45 Golem 4 | . . . . . . . . . . . . . . . 4 Savage 1 | . . . . . . . . . . . . . 1 . . Best Kill Streak 44 | 1 4 3 . 4 4 2 2 1 . 2 8 3 4 . 44 Combat Bots Only 44 | . 3 3 . 4 3 2 2 1 . 2 5 3 4 . 44 Max Kills in Single Turn 10 | 1 2 3 . 4 2 1 1 1 . 1 3 1 2 . 10 Gunslinging 1 | . 1 . . . . . . . . . . . . . . Exploded 9 | . . 3 . 4 . . 1 . . . 2 . . . 9 Melee . | . . . . . . . . . . . . . . . . Uniques/NPCs Destroyed 1 | . . . . . . . . . . . . . . . 1 Z-Imprinter (-6/Deep Caves) Combat | -11 -10 -10 -10 -9 -8 -7 -7 -7 -7 -6 -6 -6 -6 -6 -6 -------- Run | Yrd Mat Min Exi Min Mat Fac Low Low Dat Pro Fac Low Low Zio Dee Hostile Shots Fired 739 | . 30 2 . 17 57 54 98 9 . 112 130 11 46 . 173 Missed 240 | . 9 1 . 7 19 21 43 5 . 30 34 5 11 . 55 Damage Taken 8591 | . 193 9 . 288 550 512 677 27 . 1614 1657 133 539 . 2392 Core 1250 | . 27 . . 16 24 36 38 5 . 254 354 20 119 . 357 Absorbed by Shields 125 | . . . . . . . . . . 125 . . . . . Redirected to Shielding 75 | . . . . . . . . . . . . . 25 . 50 Ignored by Resistances 197 | . . . . . 11 49 . . . 137 . . . . . Regen/Repaired (Parts) 741 | . . . . . . . . . . . . . . 741 . Core Remaining (%) 82 | 100 . . . 82 95 . . . . 52 . . . . . Volleys Fired 343 | 8 34 1 . 14 57 25 12 2 . 37 64 8 18 . 63 Largest 3 | 2 2 2 . 1 2 3 3 3 . 3 3 3 3 . 3 Hottest 290 | 40 40 53 . 33 129 142 101 101 . 187 255 140 255 . 290 Shots Fired 714 | 16 68 2 . 14 98 56 30 4 . 101 171 21 50 . 83 Gun 535 | 16 68 1 . . 71 56 28 4 . 75 146 13 41 . 16 Cannon 148 | . . . . . 27 . . . . 26 23 8 9 . 55 Launcher 29 | . . 1 . 14 . . 2 . . . 2 . . . 10 Special 2 | . . . . . . . . . . . . . . . 2 Kinetic 155 | 16 68 1 . . 4 . . . . 39 6 . . . 21 Thermal 499 | . . . . . 88 56 28 4 . 62 163 21 50 . 27 Explosive 29 | . . 1 . 14 . . 2 . . . 2 . . . 10 Electromagnetic 29 | . . . . . 6 . . . . . . . . . 23 Robot Hit Streak 26 | 4 8 . . 3 15 15 10 5 . 12 26 9 17 . 13 Robot Miss Streak 7 | 2 5 2 . 6 2 5 2 . . 3 4 2 1 . 7 Penetration Max . | . . . . . . . . . . . . . . . . Secondary Targets 4 | . 1 . . . 1 . 1 . . . 1 . . . . Max Gunslinging Chain 1 | . 1 . . . 1 . 1 . . . 1 . . . . Shots Hit Robots 469 | 10 41 . . 5 69 45 19 3 . 67 110 16 40 . 44 Core Hits 338 | 3 16 4 . 15 35 16 13 2 . 24 57 9 15 . 129 Critical Kills 1 | . 1 . . . . . . . . . . . . . . Critical Parts Destroyed 1 | . . . . . . . . . . 1 . . . . . Critical Strikes 37 | . 1 . . . 3 4 1 . . 3 14 . 11 . . Burn 35 | . . . . . 3 4 1 . . 2 14 . 11 . . Destroy 2 | . 1 . . . . . . . . 1 . . . . . Melee Attacks 51 | . . . . . 3 25 . . . 2 9 . . 1 11 Impact 32 | . . . . . 1 20 . . . 2 9 . . . . Slashing 7 | . . . . . 2 5 . . . . . . . . . Piercing 12 | . . . . . . . . . . . . . . 1 11 Sneak Attacks 6 | . . . . . 1 5 . . . . . . . . . Combat Hostiles . | . . . . . . . . . . . . . . . . Follow-up Attacks . | . . . . . . . . . . . . . . . . Damage Inflicted 17020 | 76 335 106 . 940 1423 1351 493 63 . 1369 2878 408 1041 . 6537 Guns 6888 | 76 335 . . . 881 812 393 63 . 923 2155 256 788 . 206 Cannons 2910 | . . . . . 410 . . . . 446 341 152 253 . 1308 Explosions 6573 | . . 106 . 924 . 38 100 . . . 382 . . . 5023 Melee 601 | . . . . . 124 477 . . . . . . . . . Ramming 48 | . . . . 16 8 24 . . . . . . . . . Kinetic 1307 | 76 335 . . . 56 . . . . 366 29 . . . 445 Thermal 12567 | . . . . . 1183 812 393 63 . 1003 2467 408 1041 . 5197 Explosive 2159 | . . 106 . 924 . . 100 . . . 382 . . . 647 Electromagnetic 338 | . . . . . 52 38 . . . . . . . . 248 Impact 601 | . . . . . 124 477 . . . . . . . . . Slashing . | . . . . . . . . . . . . . . . . Piercing . | . . . . . . . . . . . . . . . . Highest Corruption 8 | . 3 3 3 3 . 3 8 . . . 7 . . . . Average Corruption 3 | . 3 3 3 2 . 2 5 . . . 1 . . . . Corruption Purged 18 | . . . . 3 . . 8 . . . 7 . . . . Corruption Blocked . | . . . . . . . . . . . . . . . . Effects 136 | . 18 . 13 14 . 47 32 . . . 12 . . . . Message Errors 22 | . 7 . 2 1 . 6 5 . . . 1 . . . . Matter Fused 38 | . 2 . 4 4 . 14 10 . . . 4 . . . . Heat Flow Errors 24 | . 3 . 3 3 . 7 6 . . . 2 . . . . Energy Discharges 14 | . 2 . . 1 . 10 1 . . . . . . . . Parts Rejected 1 | . . . . . . 1 . . . . . . . . . Data Loss (minor) 12 | . 3 . 3 1 . 2 2 . . . 1 . . . . Data Loss (major) 8 | . 1 . . 2 . 2 2 . . . 1 . . . . Misfires 6 | . . . . . . 2 4 . . . . . . . . Alerts 8 | . . . 1 2 . 2 2 . . . 1 . . . . Weapon Failures 3 | . . . . . . 1 . . . . 2 . . . . Overload Shots 4 | . . . . . . . . . . 2 . . 2 . . Overflow Damage 738 | . . . . 63 109 205 . . . . 20 . . . 341 Projectiles 43 | . . . . . 5 . . . . . . . . . 38 Explosions 386 | . . . . 63 . . . . . . 20 . . . 303 Melee 309 | . . . . . 104 205 . . . . . . . . . Knockbacks 4 | . . . . 1 . . . . . . 1 . . . 2 Impact 1 | . . . . 1 . . . . . . . . . . . Kinetic 3 | . . . . . . . . . . . 1 . . . 2 Secondary . | . . . . . . . . . . . . . . . . Self-Inflicted Damage 434 | . . . . 155 4 33 46 . . . 143 . . . 53 Shots 13 | . . . . 4 . 1 1 . . . 2 . . . 5 Rammed 3 | . . . . 1 1 1 . . . . . . . . . Targets Rammed 3 | . . . . 1 1 1 . . . . . . . . . Kicked . | . . . . . . . . . . . . . . . . Crushed . | . . . . . . . . . . . . . . . . Highest Temperature 509 | . 244 8 195 187 36 255 241 51 . 509 182 137 471 . 322 Average Temperature 102 | . 81 6 88 83 12 81 93 23 . 150 39 61 185 . 113 Received Heat Transfer 2020 | . 45 . . . 216 36 186 6 . 774 300 45 120 . 292 Effects 10 | . . . . . . . . . . 5 . . 5 . . Shutdowns 5 | . . . . . . . . . . 2 . . 3 . . Energy Bleed 1 | . . . . . . . . . . . . . 1 . . Interference 2 | . . . . . . . . . . 2 . . . . . Matter Decay 1 | . . . . . . . . . . 1 . . . . . Damage (minor) 1 | . . . . . . . . . . . . . 1 . . Siege Activations . | . . . . . . . . . . . . . . . . Robots Corrupted 6 | . . . . . 1 3 . . . . . . . . 2 Combat Hostiles 2 | . . . . . . . . . . . . . . . 2 Parts Fried 6 | . . . . . 1 5 . . . . . . . . . Impact Corruptions 8 | . . . . . 1 7 . . . . . . . . . Robots Melted 13 | . . . . . . 2 . . . . 3 . 5 . 3 Combat Hostiles 12 | . . . . . . 2 . . . . 3 . 4 . 3 Parts Melted 58 | . . . . . . 10 2 . . 3 28 1 13 . 1 Heat Transferred 34433 | . . . . . 2553 1776 777 111 . 1765 6382 735 3150 . 17184 Parts Sabotaged . | . . . . . . . . . . . . . . . . Parts Stolen . | . . . . . . . . . . . . . . . . Parts Stripped . | . . . . . . . . . . . . . . . . Power Chain Reactions . | . . . . . . . . . . . . . . . . Alert | -11 -10 -10 -10 -9 -8 -7 -7 -7 -7 -6 -6 -6 -6 -6 -6 ------- Run | Yrd Mat Min Exi Min Mat Fac Low Low Dat Pro Fac Low Low Zio Dee Peak Influence 315 | 5 117 82 . 296 315 99 . . . . 295 . . . . Initial 27 | . 3 2 . . 27 11 . . . . . . . . . Average 75 | 2 45 79 . 222 79 24 . . . . 88 . . . . Maximum Alert Level 1 | . . . . 1 1 . . . . . 1 . . . . Low Security (%) 84 | 100 100 100 . 22 93 100 . . . . 78 . . . . Level 1 15 | . . . . 77 6 . . . . . 21 . . . . Level 2 . | . . . . . . . . . . . . . . . . Level 3 . | . . . . . . . . . . . . . . . . Level 4 . | . . . . . . . . . . . . . . . . Level 5 . | . . . . . . . . . . . . . . . . High Security . | . . . . . . . . . . . . . . . . Max Security . | . . . . . . . . . . . . . . . . Squads Dispatched 21 | . . . . . 3 7 . . . . 11 . . . . Investigation 6 | . . . . . 1 3 . . . . 2 . . . . Extermination 9 | . . . . . . 3 . . . . 6 . . . . Reinforcement 6 | . . . . . 2 1 . . . . 3 . . . . Assault . | . . . . . . . . . . . . . . . . Garrison . | . . . . . . . . . . . . . . . . Intercept . | . . . . . . . . . . . . . . . . Searches Triggered . | . . . . . . . . . . . . . . . . Construction Impeded . | . . . . . . . . . . . . . . . . Haulers Reinforced 1 | . . . . . . . . . . . 1 . . . . Active Scanning Responses . | . . . . . . . . . . . . . . . . Cargo Convoy Interrupts 1 | . . . . . . 1 . . . . . . . . . Stealth | -11 -10 -10 -10 -9 -8 -7 -7 -7 -7 -6 -6 -6 -6 -6 -6 --------- Run | Yrd Mat Min Exi Min Mat Fac Low Low Dat Pro Fac Low Low Zio Dee Distress Signals 6 | . . . . . 4 . . . . . 2 . . . . Communications Jammed 24 | . . . . . . 19 . . . . 5 . . . . Distress Signals 24 | . . . . . . 19 . . . . 5 . . . . Times Spotted 190 | . 8 2 . 11 25 11 8 1 . 9 34 3 10 . 68 Peak Tracking Total 37 | . 3 3 . 4 5 3 5 1 . 4 5 3 4 . 37 Tactical Retreats 8 | . . . . . . 1 . . . . 4 . 1 . 2 Traps | -11 -10 -10 -10 -9 -8 -7 -7 -7 -7 -6 -6 -6 -6 -6 -6 ------- Run | Yrd Mat Min Exi Min Mat Fac Low Low Dat Pro Fac Low Low Zio Dee Traps Triggered 13 | . . . . . 1 4 . . . . 8 . . . . Indirectly 2 | . . . . . . 2 . . . . . . . . . Trap Hack Attempts . | . . . . . . . . . . . . . . . . Triggered . | . . . . . . . . . . . . . . . . Disarmed . | . . . . . . . . . . . . . . . . Reprogrammed . | . . . . . . . . . . . . . . . . Reused . | . . . . . . . . . . . . . . . . Traps Extracted . | . . . . . . . . . . . . . . . . Installed . | . . . . . . . . . . . . . . . . Triggered 4 | . . . . . . 2 . . . . . . 2 . . Machines | -11 -10 -10 -10 -9 -8 -7 -7 -7 -7 -6 -6 -6 -6 -6 -6 ---------- Run | Yrd Mat Min Exi Min Mat Fac Low Low Dat Pro Fac Low Low Zio Dee Machines Disabled 18 | . . . . 4 2 2 . . . . 4 . . 3 3 Max in Single Turn 4 | . . . . 4 1 2 . . . . 3 . . 1 2 Garrison Access 3 | . . . . . 1 1 . . . . 1 . . . . Machines Repaired . | . . . . . . . . . . . . . . . . Machines Dismantled 3 | . . . . . . . . . . . . . . 3 . Machines Sabotaged . | . . . . . . . . . . . . . . . . Overloaded Fab Kills . | . . . . . . . . . . . . . . . . Hacking | -11 -10 -10 -10 -9 -8 -7 -7 -7 -7 -6 -6 -6 -6 -6 -6 --------- Run | Yrd Mat Min Exi Min Mat Fac Low Low Dat Pro Fac Low Low Zio Dee Machines Accessed 44 | . 5 . 1 1 8 10 . 1 2 . 15 . 1 . . Terminals 23 | . 5 . . . 6 3 . . . . 9 . . . . Fabricators 4 | . . . . . . 2 . . . . 2 . . . . Repair Stations . | . . . . . . . . . . . . . . . . Recycling Units 6 | . . . . . 1 3 . . . . 2 . . . . Scanalyzers . | . . . . . . . . . . . . . . . . Garrison Access 5 | . . . . . 1 2 . . . . 2 . . . . Total Hacks 117 | . 14 . 1 1 25 14 . 1 20 . 40 . 1 . . Successful 61 | . 10 . 1 1 9 6 . 1 20 . 12 . 1 . . Failed 56 | . 4 . . . 16 8 . . . . 28 . . . . Catastrophic 9 | . . . . . . 4 . . . . 5 . . . . Database Lockouts . | . . . . . . . . . . . . . . . . Manual 66 | . 13 . 1 . 21 5 . . . . 26 . . . . Terminals 67 | . 14 . . . 19 5 . . . . 29 . . . . Fabricators 7 | . . . . . . 2 . . . . 5 . . . . Repair Stations . | . . . . . . . . . . . . . . . . Recycling Units 11 | . . . . . 4 4 . . . . 3 . . . . Scanalyzers . | . . . . . . . . . . . . . . . . Garrison Access 8 | . . . . . 2 3 . . . . 3 . . . . Terminal Hacks 28 | . 1 . 1 1 1 . . 1 20 . 2 . 1 . . Part Schematic 11 | . . . . . . . . . 11 . . . . . . Robot Schematic 6 | . . . . . . . . . 6 . . . . . . Robot Analysis 1 | . 1 . . . . . . . . . . . . . . Prototype ID Bank 3 | . . . . . . . . . 3 . . . . . . Open Door 3 | . . . . 1 . . . 1 . . . . 1 . . Branch Access Points 1 | . . . . . . . . . . . 1 . . . . Unreport Threat 2 | . . . . . 1 . . . . . 1 . . . . Derelict Proto ID Bank 1 | . . . 1 . . . . . . . . . . . . Fabricator Hacks 5 | . . . . . . 2 . . . . 3 . . . . Network Status 1 | . . . . . . 1 . . . . . . . . . Load Schematic 2 | . . . . . . . . . . . 2 . . . . Build 2 | . . . . . . 1 . . . . 1 . . . . Repair Station Hacks . | . . . . . . . . . . . . . . . . Recycling Unit Hacks 2 | . . . . . . 2 . . . . . . . . . Retrieve Components 2 | . . . . . . 2 . . . . . . . . . Scanalyzer . | . . . . . . . . . . . . . . . . Garrison Access Hacks 3 | . . . . . 1 1 . . . . 1 . . . . Seal Access 3 | . . . . . 1 1 . . . . 1 . . . . Unauthorized Hacks 23 | . 9 . . . 7 1 . . . . 6 . . . . Terminals 22 | . 9 . . . 6 1 . . . . 6 . . . . Botnet 5 | . 4 . . . . . . . . . 1 . . . . Skim 17 | . 5 . . . 6 1 . . . . 5 . . . . Fabricators . | . . . . . . . . . . . . . . . . Repair Stations . | . . . . . . . . . . . . . . . . Recycling Units 1 | . . . . . 1 . . . . . . . . . . Mask 1 | . . . . . 1 . . . . . . . . . . Scanalyzers . | . . . . . . . . . . . . . . . . Garrison Access . | . . . . . . . . . . . . . . . . Data Cores Recovered 1 | . . . . . . . . . . . 1 . . . . Used . | . . . . . . . . . . . . . . . . Hacking Detections 32 | . 5 . . . 7 6 . . . . 14 . . . . Full Trace Events 4 | . . . . . . 2 . . . . 2 . . . . Feedback Events 1 | . . . . . . 1 . . . . . . . . . Corruption 1 | . . . . . . 1 . . . . . . . . . Feedback Blocked . | . . . . . . . . . . . . . . . . Robot Schematics Acquired 9 | . . . . . . . . . 6 . . . . 3 . Robots Built . | . . . . . . . . . . . . . . . . Authchips . | . . . . . . . . . . . . . . . . Time . | . . . . . . . . . . . . . . . . Total Robot Build Rating . | . . . . . . . . . . . . . . . . Part Schematics Acquired 25 | . . . . . . . . . 11 . . . . 14 . Parts Built 2 | . . . . . . . . . . . 2 . . . . Authchips . | . . . . . . . . . . . . . . . . Time 142 | . . . . . . 84 . . . . 58 . . . . Total Part Build Rating 14 | . . . . . . . . . . . 14 . . . . Parts Repaired . | . . . . . . . . . . . . . . . . Time . | . . . . . . . . . . . . . . . . Parts Recycled . | . . . . . . . . . . . . . . . . Recycled Matter . | . . . . . . . . . . . . . . . . Retrieved Matter . | . . . . . . . . . . . . . . . . Retrieved Components 20 | . . . . . . 20 . . . . . . . . . Parts Scanalyzed . | . . . . . . . . . . . . . . . . Part Schematics Acquired . | . . . . . . . . . . . . . . . . Parts Damaged . | . . . . . . . . . . . . . . . . Bothacking | -11 -10 -10 -10 -9 -8 -7 -7 -7 -7 -6 -6 -6 -6 -6 -6 ------------ Run | Yrd Mat Min Exi Min Mat Fac Low Low Dat Pro Fac Low Low Zio Dee Used RIF Installer . | . . . . . . . . . . . . . . . . Robots Hacked . | . . . . . . . . . . . . . . . . Non-combat . | . . . . . . . . . . . . . . . . Combat . | . . . . . . . . . . . . . . . . Robot Hacks Applied . | . . . . . . . . . . . . . . . . Relay Couplers Released 4 | . . . . . . . . . . . 4 . . . . Machine Destruction 1 | . . . . . . . . . . . 1 . . . . Programmers 3 | . . . . . . . . . . . 3 . . . . Fabnet Peak Effective % . | . . . . . . . . . . . . . . . . Robots Rewired . | . . . . . . . . . . . . . . . . Allies Hacked . | . . . . . . . . . . . . . . . . Hacks Repelled . | . . . . . . . . . . . . . . . . Allies | -11 -10 -10 -10 -9 -8 -7 -7 -7 -7 -6 -6 -6 -6 -6 -6 -------- Run | Yrd Mat Min Exi Min Mat Fac Low Low Dat Pro Fac Low Low Zio Dee Total Allies 7 | . . . . . . . . . . . . . . 5 2 Largest Group 5 | . . . . . . . . . . . . . . 5 5 Highest-Rated Group 149 | . . . . . . . . . . . . . . 149 149 Highest-Rated Ally 70 | . . . . . . . . . . . . . . 31 70 Total Orders 16 | . . . . . . . . . . . . . . . 16 STAY 4 | . . . . . . . . . . . . . . . 4 ROAM 5 | . . . . . . . . . . . . . . . 5 FOLLOW 7 | . . . . . . . . . . . . . . . 7 Ally Attacks 95 | . . . . . . . . . . . . . . . 95 Total Damage 1423 | . . . . . . . . . . . . . . . 1423 Kills 11 | . . . . . . . . . . . . . . . 11 Allies Corrupted . | . . . . . . . . . . . . . . . . Allies Melted . | . . . . . . . . . . . . . . . . Field Lobotomies 2 | . . . . . . . . . . . . . . . 2 Intel | -11 -10 -10 -10 -9 -8 -7 -7 -7 -7 -6 -6 -6 -6 -6 -6 ------- Run | Yrd Mat Min Exi Min Mat Fac Low Low Dat Pro Fac Low Low Zio Dee Robot Analysis Total 1 | . 1 . . . . . . . . . . . . . . Derelict Logs Recovered 6 | . . . . 1 . . . 3 . . . . 2 . . Drone Launches . | . . . . . . . . . . . . . . . . Drone Recoveries . | . . . . . . . . . . . . . . . . Exploration | -11 -10 -10 -10 -9 -8 -7 -7 -7 -7 -6 -6 -6 -6 -6 -6 ------------- Run | Yrd Mat Min Exi Min Mat Fac Low Low Dat Pro Fac Low Low Zio Dee Turns Passed 23551 | 133 1190 66 804 921 1683 3025 1207 707 115 1422 4251 534 621 2563 4309 Spaces Moved 11887 | 65 525 37 399 269 867 1459 449 471 80 839 2395 385 369 1427 1851 Core 2 | 2 . . . . . . . . . . . . . . . Treads 1711 | 63 525 37 399 269 99 . . . . . 319 . . . . Legs . | . . . . . . . . . . . . . . . . Wheels 10172 | . . . . . 766 1459 449 471 80 839 2076 385 369 1427 1851 Hover 2 | . . . . . 2 . . . . . . . . . . Flight . | . . . . . . . . . . . . . . . . Fastest Speed 50 | 50 160 160 160 240 115 135 130 145 145 130 130 130 130 130 130 Average Speed 153 | 156 160 160 200 242 143 181 149 145 145 144 149 130 134 136 145 Slowest Speed 535 | 160 160 160 240 320 535 200 160 145 145 145 250 130 150 150 150 Overloaded Moves . | . . . . . . . . . . . . . . . . Propulsion Burnouts . | . . . . . . . . . . . . . . . . Robots Hopped . | . . . . . . . . . . . . . . . . Cave-ins Triggered . | . . . . . . . . . . . . . . . . Exploration Rate (%) 54 | 4 63 17 67 57 59 24 57 53 69 82 52 64 41 80 78 Regions Visited 15 Branch Regions 11 Pre-discovered Areas 9 | . . . . 2 4 . . . . . 2 . 1 . . Known Exits Taken 9 | . 1 . 1 1 1 1 . 1 . 1 1 . 1 . . Unknown Exits Taken 6 | 1 . 1 . . . . 1 . 1 . . 1 . 1 . Scrap Searched 10 | . . . . . . . 3 2 . 1 . 1 1 2 . Spaces Dug 46 | . . . . . 2 20 . . . 2 11 . . . 11 Terrain Destroyed 353 | . . 10 . 136 2 20 20 . . 4 61 4 3 . 93 Melee 44 | . . . . . 2 20 . . . 2 9 . . . 11 Projectile 16 | . . . . . . . . . . 2 4 4 3 . 3 AOE 293 | . . 10 . 136 . . 20 . . . 48 . . . 79 Terrain Rammed . | . . . . . . . . . . . . . . . . Walls Destroyed . | . . . . . . . . . . . . . . . . Machines Disabled . | . . . . . . . . . . . . . . . . Actions | -11 -10 -10 -10 -9 -8 -7 -7 -7 -7 -6 -6 -6 -6 -6 -6 --------- Run | Yrd Mat Min Exi Min Mat Fac Low Low Dat Pro Fac Low Low Zio Dee Total 16413 | 80 819 42 406 524 1204 1740 966 493 79 959 2916 400 452 1979 3354 Wait 3601 | 1 246 4 . 217 192 162 488 15 . 60 301 2 57 509 1347 Move 11872 | 64 524 36 398 268 866 1458 448 470 79 838 2394 384 368 1426 1851 Hop . | . . . . . . . . . . . . . . . . Pick Up 116 | . 10 . 4 9 17 10 3 3 . 4 33 1 1 4 17 Fast Attach 24 | 7 . . . 1 2 3 2 . . 2 5 1 . . 1 Attach 38 | . . . . 6 4 2 2 . . 6 8 . 2 1 7 Detach 9 | . . . . 3 . 1 2 . . . . . . . 3 Swap 181 | . 4 1 1 3 40 30 4 1 . 9 43 3 5 8 29 Drop 114 | . 1 . 3 2 22 15 5 2 . 1 35 1 1 3 23 Fire 343 | 8 34 1 . 14 57 25 12 2 . 37 64 8 18 . 63 Melee 51 | . . . . . 3 25 . . . 2 9 . . 1 11 Ram 2 | . . . . . 1 1 . . . . . . . . . Kick . | . . . . . . . . . . . . . . . . Crush 1 | . . . . 1 . . . . . . . . . . . Escape Stasis 32 | . . . . . . 8 . . . . 24 . . . . Rewire 2 | . . . . . . . . . . . . . . . 2 Trap . | . . . . . . . . . . . . . . . . Miscellaneous 27 | . . . . . . . . . . . . . . 27 . Route ------- -11/Scrapyard -10/Materials (discovered 6 exits: *Mat x3 / *Min x2 / Sub) -10/Mines (discovered 3 exits: Mat x2 / *Exi) -10/Exiles -9/Mines -8/Materials (discovered 3 exits: *Fac x3) -7/Factory (discovered 5 exits: *Fac x2 / *Sto x2 / *Low) -7/Lower Caves -7/Lower Caves -7/Data Miner -6/Proximity Caves -6/Factory (discovered 6 exits: *Fac x2 / *Low x2 / *Ext x2) -6/Lower Caves -6/Lower Caves -6/Zion (discovered 2 exits: [*Dee] / [*Pro]) -6/Deep Caves (discovered 1 exit: [*Pro]) History --------- Turn | Location | Event 13 | -11/Scrapyard | Discovered new exit (range 15) 134 | -11/Scrapyard | Entered Materials 306 | -10/Materials | Build established: Mutant 387 | -10/Materials | Discovered new exit (range 13) 541 | -10/Materials | Discovered new exit (range 3) 755 | -10/Materials | Discovered new exit (range 16) 877 | -10/Materials | Learned Storage emergency access door positions 957 | -10/Materials | Identified exit to Mines 1091 | -10/Materials | Loaded intel: 16 trap records 1187 | -10/Materials | Learned 4 Recycling zone layouts 1240 | -10/Materials | Identified exit to Subcaves 1240 | -10/Materials | Identified exit to Materials 1324 | -10/Materials | Entered Mines 1381 | -10/Mines | Deemed a non-threat by the Exiles lab entrance 1382 | -10/Mines | Discovered new exit (range 5) 1390 | -10/Mines | Entered Exiles 1391 | -10/Exiles | Identified exit to Mines 1429 | -10/Exiles | Met 8R-AWN 1459 | -10/Exiles | Met EX-HEX 1500 | -10/Exiles | Met EX-BIN 1521 | -10/Exiles | Aligned with FarCom system 1523 | -10/Exiles | Given EX-Vault access code 1561 | -10/Exiles | Opened EX-Vault 1612 | -10/Exiles | Warned to stay clear of 0b10 Research branches 1890 | -10/Exiles | Found Firepult 2030 | -10/Exiles | Met EX-DEC 2194 | -10/Exiles | Left Exiles lab with Firepult 2194 | -10/Exiles | Entered Mines 2195 | -9/Mines | Identified exit to Materials 2710 | -9/Mines | Learned location of Storage (-7) 2882 | -9/Mines | Met a Derelict who couldn't figure out how to use a Trap Extractor 3115 | -9/Mines | Entered Materials 3115 | -8/Materials | Evolved 4 slots: Utility x4 3599 | -8/Materials | Build established: Scavenger-Mutant 3803 | -8/Materials | Discovered new exit (range 4) 4050 | -8/Materials | Build established: Mutant 4418 | -8/Materials | Discovered new exit (range 9) 4576 | -8/Materials | Identified exit to Factory 4613 | -8/Materials | Learned Storage stockpile data 4663 | -8/Materials | Learned location of Recycling (-7) 4664 | -8/Materials | Learned location of Extension (-6) 4675 | -8/Materials | Learned location of 1 exit from Storage 4798 | -8/Materials | Entered Factory 4798 | -7/Factory | Evolved 2 slots: Power x1, Weapon x1 4799 | -7/Factory | Identified exit to Factory 4799 | -7/Factory | Identified exit to Storage 4799 | -7/Factory | Identified exit to Lower Caves 4880 | -7/Factory | Discovered exit to Storage (range 16) 5424 | -7/Factory | Build established: Tank 6227 | -7/Factory | Build established: Skirmisher 6244 | -7/Factory | Cargo convoy interrupted 6875 | -7/Factory | Build established: Mutant 7823 | -7/Factory | Entered Lower Caves 7825 | -7/Lower Caves | Attracted the attention of an 0b10 checkpoint 7870 | -7/Lower Caves | Lost 3 parts (1p1u1w) 8078 | -7/Lower Caves | Found DCF Scrap (16 items) 8385 | -7/Lower Caves | Build established: Derelict-Gunner 8793 | -7/Lower Caves | Discovered new exit (range 10) 9030 | -7/Lower Caves | Entered another Lower Caves area 9041 | -7/Lower Caves | Attracted the attention of an 0b10 checkpoint 9190 | -7/Lower Caves | Identified exit to Data Miner 9299 | -7/Lower Caves | Learned Factory emergency access door positions 9356 | -7/Lower Caves | Build established: Gunner 9737 | -7/Lower Caves | Entered Data Miner 9737 | -7/Data Miner | Discovered new exit (range 6) 9765 | -7/Data Miner | Met Data Miner 9814 | -7/Data Miner | Received God Mode back door access code from Data Miner 9852 | -7/Data Miner | Entered Proximity Caves 9863 | -6/Proximity Caves | Attracted the attention of an 0b10 checkpoint 9912 | -6/Proximity Caves | Spotted B-75 Beast 9955 | -6/Proximity Caves | Destroyed B-75 Beast 9978 | -6/Proximity Caves | Lost 5 parts (2u3w) 10270 | -6/Proximity Caves | Build established: Tank 10593 | -6/Proximity Caves | Build established: Scavenger-Gunner 11154 | -6/Proximity Caves | Discovered exit to Factory (range 12) 11274 | -6/Proximity Caves | Entered Factory 11274 | -6/Factory | Evolved 2 slots: Utility x2 11580 | -6/Factory | Build established: Scavenger-Skirmisher 12469 | -6/Factory | Build established: Skirmisher 13316 | -6/Factory | Fabricated Centrium Wheel (x2) 13414 | -6/Factory | Build established: Gunner 13691 | -6/Factory | Discovered new exit (range 9) 13797 | -6/Factory | Build established: Mutant 14144 | -6/Factory | Build established: Gunner 14542 | -6/Factory | Discovered new exit (range 12) 14555 | -6/Factory | Identified exit to Extension 14684 | -6/Factory | Identified exit to Factory 14755 | -6/Factory | Identified exit to Lower Caves 15139 | -6/Factory | Discovered exit to Factory (range 9) 15268 | -6/Factory | Learned location of Warlord (-4) 15324 | -6/Factory | Learned location of Proximity Caves (-4) 15338 | -6/Factory | Loaded intel: 4 garrison access locations 15350 | -6/Factory | Learned Factory stockpile data 15372 | -6/Factory | Learned location of 1 exit from Upper Caves 15525 | -6/Factory | Entered Lower Caves 15867 | -6/Lower Caves | Build established: Tank 15890 | -6/Lower Caves | Discovered new exit (range 8) 16059 | -6/Lower Caves | Entered another Lower Caves area 16068 | -6/Lower Caves | Core integrity fell below 50% 16117 | -6/Lower Caves | Identified exit to Zion 16206 | -6/Lower Caves | Spotted B-75 Beast 16264 | -6/Lower Caves | Destroyed B-75 Beast 16382 | -6/Lower Caves | Build established: Gunner 16680 | -6/Lower Caves | Entered Zion 16736 | -6/Zion | Found Unknown Piercing Weapon 16762 | -6/Zion | Discovered new exit (range 15) 16864 | -6/Zion | Visited the Megawrench Repair Shop 17163 | -6/Zion | Identified CR-A16's Pointy Stick 17499 | -6/Zion | Discovered new exit (range 5) 17502 | -6/Zion | Saw the warning signs outside the Deep Caves entrance 17714 | -6/Zion | Gained Derelict followers 17795 | -6/Zion | Build established: Mutant 18018 | -6/Zion | Found Prototype Device 18018 | -6/Zion | Identified Phasing AFG 18978 | -6/Zion | Megawrench repaired 14 parts 19243 | -6/Zion | Entered Deep Caves 19243 | -6/Deep Caves | Accompanied by 5 allies 19420 | -6/Deep Caves | Attacked by Z-Imprinter 19438 | -6/Deep Caves | Allies destroyed Z-Imprinter 19547 | -6/Deep Caves | Z-Facility disabled 19664 | -6/Deep Caves | Build established: Gunner 19989 | -6/Deep Caves | Discovered new exit (range 6) 20115 | -6/Deep Caves | Spotted AG-36364 20148 | -6/Deep Caves | Destroyed AG-36364 20154 | -6/Deep Caves | Found GOLEM Unit 20159 | -6/Deep Caves | Lost 5 allies 20254 | -6/Deep Caves | Spotted AG-68970 20306 | -6/Deep Caves | Destroyed AG-68970 20329 | -6/Deep Caves | Found Field Lobotomy Kit 21194 | -6/Deep Caves | Assimilated ZN-XMB(z) with FLK Orb 21197 | -6/Deep Caves | Assimilated X8-OSS(z) with FLK Orb 21221 | -6/Deep Caves | Found Prototype Protection 21221 | -6/Deep Caves | Identified Zio. Weapon Casing 21741 | -6/Deep Caves | Build established: Scavenger-Mutant 22041 | -6/Deep Caves | Build established: Scavenger-Tank 23437 | -6/Deep Caves | Triggered Deep Caves wall 23439 | -6/Deep Caves | Exposed GOLEM chamber 23451 | -6/Deep Caves | Core integrity fell below 20% 23483 | -6/Deep Caves | Lost 4 parts (1p2u1w) 23513 | -6/Deep Caves | Spotted AS-01622 23517 | -6/Deep Caves | Spotted AS-22297 23552 | -6/Deep Caves | Destroyed by as-86785 with Assembled Shotgun Last Messages --------------- 23522_ Zio. Light DM Reactor destroyed. 23522_ as-46415 destroyed. 23522_ Slug penetrates as-22227. 23526_ Penetrated by Slug. 23526_ Imp. Heat Sink destroyed. 23526_ X8-OSS(z) destroyed. 23527_ as-35421 destroyed. 23527_ as-22227 destroyed. 23527_ as-47708 destroyed. 23527_ as-02812 destroyed. 23527_ Destroyed Asb. P-sword. 23528_ as-31115 heat short circuits Asb. Hover System. 23530_ as-31115 destroyed. 23530_ as-55007 critical meltdown. 23532_ Firepult destroyed. 23536_ Penetrated by Slug. 23542_ as-21454 destroyed. 23545_ as-26167 destroyed. 23551_ Destroyed Asb. Shotgun. 23551_ as-51100 destroyed. Map ----- +----------------------------------------------------+ | " ## #??????????### #### #??## | | " # #####???#### # #??# | | " #??## # #??# ### | | # ###??# ##??# ##?? | | "" ##????## # #?## ##??# | | ?" ###??????# # ### ##??## | | ?" #??????# # ## #??## | | ?" #####?????## ## ## #### | | "" "## #??????# #### #### ## | | # ### ####???# ###??# ##### | | # # #???## #????# #??## | | # ####????# #????## ##?## | | ###????# #???## ### #### | | %% #????# ##### ##??? | | % ###????# ## ###?? | | % ##???### #?? | | #??## # "" ##? | | #??# ## """ ## | | = #??# ## " | | # * #??## ### | | " ]=[ #???## #######?### | | " #????# ##?????????### | | ?" #???## ##?????????# # | | ?! % ##?## #?????????# | | "" #?# #?????????#### | | # ! * !% ### @ ;; #??####???## | | " [* = ## ;;; #?## ##### # | | " [== / #; ;;;; ##?# ## | | " [= % %a ; #?## #? | | """ %*=[ a ###" #? | | " !=% %a ######## #? | | "" % ;## #??????## ##? | | " ### ##?###### ##? | | "" ;"" ### #? | | " ; ; "## ## #? | | " #### #; ## #" ## ####### ##? | | """ ###??# ## ###########?????### ### ###?? | | ?" ???#### #?????????????????#####?######???? | | ?########?????###????????????????????????????????? | | | | | | | | | | | | | | | | | | | | | | | +----------------------------------------------------+ Best States ------------- Heat Dissipation 91 Energy Generation 40 Energy Capacity 850 Matter Stores 300 Matter Capacity 300 Sight Range 16 Robot Scan Range 15 Terrain Scan Density 10 Jamming Range 12 Corruption Containment 8 Armor Coverage 450 Resistance: KI 20 Resistance: TH 20 Resistance: EM 20 Core Shielding 20 Weapon Shielding 100 Phase Shifting 5 Evasion (%) 45 Targeting Accuracy 8 Core Analysis 6 Armor Integrity Analysis 30 Recoil Reduction 2 Particle Charging 20 Salvage Targeting 2 Offensive Hacking 12 Defensive Hacking 10 Item Schematics ----------------- Combat Drone Bay | -7/Data Miner | Free Lgt. Regenerative Plating | -7/Data Miner | Free Cld. Aerolev Unit | -7/Data Miner | Free Gravity Neutralizer | -7/Data Miner | Free Scatter Rocket Array | -7/Data Miner | Free Hvy. Treads | -7/Data Miner | Free Imp. Corruption Screen | -7/Data Miner | Free Lance | -7/Data Miner | Free Hyp. Gauss Cannon | -7/Data Miner | Free Centrium Wheel | -7/Data Miner | Free Micro-nuke Launcher | -7/Data Miner | Free Thermal Shield | -6/Zion | Archive Antigrav System | -6/Zion | Archive Magnetic Acceleration Cannon | -6/Zion | Archive Coil Gun | -6/Zion | Archive Imp. Dynamic Insulation System | -6/Zion | Archive Imp. Trap Scanner | -6/Zion | Archive Myomer Leg | -6/Zion | Archive Adv. Thermal Generator | -6/Zion | Archive Imp. Core Shielding | -6/Zion | Archive Lyr. Heavy Armor Plating | -6/Zion | Archive Power Amplifier | -6/Zion | Archive Variable Charge Gun | -6/Zion | Archive Imp. Focal Shield | -6/Zion | Archive Energy Well | -6/Zion | Archive Robot Schematics ------------------ W-25 Informer | -7/Data Miner | Free M-28 Smith | -7/Data Miner | Free B-48 Gladiator | -7/Data Miner | Free H-66 Slayer | -7/Data Miner | Free X-72 Disruptor | -7/Data Miner | Free S-27 Virus | -7/Data Miner | Free L-41 Fighter | -6/Zion | Archive K-01 Serf | -6/Zion | Archive X-82 Rainmaker | -6/Zion | Archive Fabricated ------------ Centrium Wheel | x2 | -6/Factory Alien Tech Used ----------------- None Achievements -------------- None Challenges ------------ None Game ------ Seed HeavyActiveRailgun Manual? 0 Play Time 02:34:03 Cumulative 206.0 hours Start 2024.09.03 @ 21:58:08 End 2024.09.04 @ 00:42:27 Sessions 1 Manual Loads 0 Difficulty Rogue Special Mode None Game No. 177 Rogue 177 Adventurer 0 Explorer 0 Win Type - Total 1 Types 0/0/0/1/0/0/0/0/0 Lore% 63 Gallery% 73 Achievement% 54 Wizard Run 0 Options --------- Layout 2 ASCII 0 Keyboard 1 Movement Vi Keybinds 0 Fullscreen 1 Font 32/SmallcapsGlow Map View 77x44 Zoom Use 0% Tactical HUD 1 Map Filters NONE Filters NONE Steam 1 RUN: c3958043-2bfa-4615-b051-a02e93468a31